fUSD/lending_fUSD_20250127
["ID","MTS","AMOUNT","RATE_DAILY","PERIOD"]
[350618297,1737999039875,-2101.47160732,0.0001,2]
[350618299,1737999039959,-664.04016872,0.0001,2]
[350618300,1737999040014,-10610.6,0.0001,2]
[350618301,1737999040026,-258.63534263,0.0001,2]
[350618315,1737999042945,-1541.88207998,0.0001,2]
[350618316,1737999043001,-351.19938405,0.0001,2]
[350618317,1737999043056,-32854.47,0.0001,2]
[350618318,1737999043119,-73528.1829499,0.0001,2]
[350618319,1737999043128,-616.041906,0.0001,2]
[350618320,1737999043138,-1444.68460131,0.0001,2]
[350618321,1737999043147,-569.87737023,0.0001,2]
[350618322,1737999043157,-177.18,0.00010086,2]
[350618323,1737999043166,-301.5,0.00010256,2]
[350618325,1737999043175,-170.31,0.00010459,2]
[350618326,1737999043185,-853.44,0.00010466,2]
[350618327,1737999043195,-500.0,0.00010548,2]
[350618328,1737999043204,-500.0,0.00010773,2]
[350618329,1737999043214,-75127.38006512,0.00010779,2]
[350618330,1737999043223,-147478.26300512,0.000108,2]
[350618335,1737999046204,-445.32248934,0.000108,2]
[350618336,1737999046300,-16655.02340304,0.000108,2]
[350618337,1737999046320,-724.4750009,0.000108,2]
[350618338,1737999046331,-1544.66116131,0.000108,2]
[350618340,1737999487438,700.0,9.78e-05,2]
[350618341,1737999764140,700.0,9.78e-05,2]
[350618342,1737999945358,810.77,8.219e-05,2]
[350618369,1738000146600,246.27,9.896e-05,2]
[350618373,1738000232043,-170.31,9.958e-05,2]
[350618374,1738000232052,-1000.0,9.983e-05,2]
[350618375,1738000232061,-300.0,9.985e-05,2]
[350618376,1738000232070,-12551.2136,9.986e-05,2]
[350618377,1738000232254,-943.7974135,9.986e-05,2]
[350618378,1738000232359,-1581.5489865,9.986e-05,2]
[350618379,1738000232368,-368.24,0.00010137,2]
[350618380,1738000232377,-196.94,0.00010177,2]
[350618381,1738000232386,-810.77,0.0001047,2]
[350618382,1738000232395,-1562.4379,0.000105,2]
[350618383,1738000232404,-616.041906,0.000105,2]
[350618384,1738000232413,-57642.15322162,0.00010599,2]
[350618385,1738000232424,-17485.22684449,0.00010599,2]
[350618386,1738000232433,-111184.61567244,0.000106,2]
[350618387,1738000232444,-927.61514,0.000106,2]
[350618388,1738000232471,-2801.14388324,0.000106,2]
[350618415,1738000238266,-22823.35350886,0.000106,2]
[350618416,1738000238275,-49582.6544,0.000106,2]
[350618417,1738000238284,-46913.135848,0.000106,2]
[350618418,1738000238294,-2219.3902,0.000106,2]
[350618419,1738000238303,-19304.887,0.000107,2]
[350618420,1738000238312,-31393.428,0.000107,2]
[350618421,1738000238321,-353.9518,0.000107,2]
[350618423,1738000238331,-2595.7752,0.000107,2]
[350618425,1738000238340,-160.47173174,0.000107,2]
[350618427,1738000238350,-165.17228009,0.000107,2]
[350618429,1738000238359,-1036.8439,0.000107,2]
[350618430,1738000238368,-773.87,0.000107,2]
[350618431,1738000238377,-438.06,0.000107,2]
[350618434,1738000238386,-773.87,0.000107,2]
[350618436,1738000238395,-409.71,0.000107,2]
[350618437,1738000238404,-437.86,0.000107,2]
[350618439,1738000238413,-5541.96308846,0.000107,2]
[350618441,1738000238423,-772.47,0.000107,2]
[350618443,1738000238432,-772.64,0.000107,2]
[350618445,1738000238442,-165.17228008,0.00010732,2]
[350618447,1738000238452,-188.13208684,0.0001074,2]
[350618449,1738000238461,-165.17228008,0.00010763,2]
[350618451,1738000238471,-160.47173172,0.00010779,2]
[350618453,1738000238480,-165.17228008,0.00010795,2]
[350618455,1738000238489,-12583.71269429,0.000108,2]
[350618547,1738000240093,-246.75,0.000106,2]
[350618548,1738000240105,-33.14382421,0.000108,2]
[350618549,1738000240255,-396.08829725,0.000108,2]
[350618550,1738000240266,-1499.023491,0.000108,2]
[350618559,1738000243171,-3088.39999999,0.000108,2]
[350618560,1738000243183,-1151.2463362,0.000108,2]
[350618561,1738000243227,-227738.67694778,0.000108,2]
[350618562,1738000243241,-4930.11743562,0.000108,2]
[350618589,1738000246038,-533.59496,0.000106,2]
[350618590,1738000246201,-274.96196698,0.000106,2]
[350618591,1738000246311,-505.22205798,0.000106,2]
[350618599,1738000798414,729.69,8.219e-05,2]
[350618611,1738001408746,10000.0,9.901e-05,2]
[350618612,1738001424993,3399.64,9.901e-05,2]
[350618624,1738001432318,-157.55,9.956e-05,2]
[350618625,1738001432329,-1000.0,0.00010128,2]
[350618626,1738001432339,-182.38116118,0.00010318,2]
[350618627,1738001432348,-224.85533617,0.0001034,2]
[350618628,1738001432357,-224.85533617,0.00010382,2]
[350618629,1738001432370,-177.18,0.0001044,2]
[350618630,1738001432380,-3225.74725759,0.0001044,2]
[350618631,1738001432390,-729.69,0.00010482,2]
[350618632,1738001432399,-300.0,0.00010534,2]
[350618633,1738001432408,-9128.30855807,0.00010535,2]
[350618634,1738001432420,-440.07082915,0.00010535,2]
[350618635,1738001432438,-8519.34848858,0.00010535,2]
[350618636,1738001432449,-6598.57071072,0.00010535,2]
[350618637,1738001432459,-699.063,0.00010584,2]
[350618638,1738001432468,-201.18694551,0.000106,2]
[350618639,1738001432478,-2552.85451691,0.000107,2]
[350618640,1738001432489,-7084.42338309,0.000107,2]
[350618641,1738001432499,-3623.0119,0.000107,2]
[350618642,1738001432508,-1377.0926,0.000107,2]
[350618643,1738001432517,-93469.65823686,0.000108,2]
[350618644,1738001432528,-418045.45751511,0.000108,2]
[350618645,1738001432546,-73362.7860806,0.000108,2]
[350618646,1738001432557,-6505.60278513,0.000108,2]
[350618647,1738001432568,-1251.06344126,0.000108,2]
[350618648,1738001432587,-350.78747481,0.000108,2]
[350618649,1738001432598,-4287.90357461,0.000108,2]
[350618791,1738001438128,-2423.30229434,0.000108,2]
[350618792,1738001438187,-6891.19371938,0.000108,2]
[350618838,1738001438894,-967.32069463,0.000108,2]
[350618841,1738001438905,-1131.86393258,0.000108,2]
[350618843,1738001438916,-1245.32674298,0.000108,2]
[350618845,1738001438928,-59315.35648855,0.000108,2]
[350618847,1738001438941,-7554.46542482,0.000108,2]
[350618853,1738001438990,-734.09,0.000108,2]
[350618856,1738001439001,-3562.92770236,0.000108,2]
[350618858,1738001439013,-137174.648,0.000108,2]
[350618860,1738001439024,-448.49998,0.000108,2]
[350618862,1738001439036,-6370.63624616,0.000108,2]
[350618864,1738001439047,-10968.0316088,0.000108,2]
[350618867,1738001439069,-4162.28169949,0.000108,2]
[350618869,1738001439078,-200.0,0.000108,2]
[350618871,1738001439087,-2000.0,0.000108,2]
[350618873,1738001439098,-200.0,0.000108,2]
[350618875,1738001439107,-55.87309422,0.000108,2]
[350618878,1738001439121,-546.01005836,0.000108,2]
[350619000,1738001440267,-1335.49230084,0.000108,2]
[350619003,1738001440382,-62.62454658,0.000108,2]
[350619005,1738001440391,-200.0,0.000108,2]
[350619007,1738001440400,-1347.589038,0.000108,2]
[350619009,1738001440413,-652.410962,0.000108,2]
[350619011,1738001440422,-200.0,0.000108,2]
[350619013,1738001440431,-143.00453936,0.000108,2]
[350619015,1738001440442,-283.64400001,0.000108,2]
[350619022,1738001440491,-2573.35146063,0.000108,2]
[350619024,1738001440500,-160.47173172,0.00010854,2]
[350619026,1738001440509,-165.17228008,0.00010854,2]
[350619028,1738001440518,-385.00452757,0.00010854,2]
[350619043,1738001440657,-378.14092851,0.00010854,2]
[350619045,1738001440667,-184.56144435,0.00010854,2]
[350619047,1738001440676,-1016.43461094,0.00010854,2]
[350619110,1738001443204,-728.09961743,0.00010854,2]
[350619112,1738001443215,-514.97010049,0.00010854,2]
[350619116,1738001443264,-1544.7063138,0.00010854,2]
[350619144,1738001446220,-4036.56079069,0.00010854,2]
[350619145,1738001446230,-281.77562958,0.00010854,2]
[350619146,1738001446243,-165.17228008,0.00010858,2]
[350619147,1738001446251,-197.61233305,0.000109,2]
[350619148,1738001446386,-1823.47766695,0.000109,2]
[350619149,1738001446395,-2239.0,0.000109,2]
[350619150,1738001446405,-2000.0,0.00010908,2]
[350619151,1738001446414,-200.0,0.00010908,2]
[350619152,1738001446424,-2000.0,0.00010908,2]
[350619153,1738001446433,-200.0,0.00010908,2]
[350619154,1738001446443,-2000.0,0.00010908,2]
[350619155,1738001446452,-46.80891347,0.00010908,2]
[350619156,1738001446519,-153.19108653,0.00010908,2]
[350619157,1738001446529,-500.0,0.00010953,2]
[350619158,1738001446538,-168.10889347,0.00010953,2]
[350619169,1738001634435,738.97,8.219e-05,2]
[350619179,1738002073846,1373.11,9.869e-05,2]
[350619180,1738002124946,760.88,9.866e-05,2]
[350619181,1738002138644,348.57,9.866e-05,2]
[350619182,1738002141034,200.0,9.866e-05,2]
[350619183,1738002141183,1009.77,9.86e-05,2]
[350619184,1738002151044,173.45,9.834e-05,2]
[350619185,1738002151265,173.45,9.837e-05,2]
[350619186,1738002151497,173.45,9.839e-05,2]
[350619187,1738002151722,173.45,9.842e-05,2]
[350619188,1738002151998,173.45,9.844e-05,2]
[350619189,1738002152293,173.45,9.847e-05,2]
[350619190,1738002152739,173.45,9.85e-05,2]
[350619191,1738002152961,173.45,9.852e-05,2]
[350619192,1738002153182,173.45,9.855e-05,2]
[350619193,1738002153404,173.45,9.857e-05,2]
[350619194,1738002153622,173.45,9.86e-05,2]
[350619195,1738002153821,173.45,9.862e-05,2]
[350619196,1738002154036,173.45,9.865e-05,2]
[350619197,1738002154272,173.45,9.868e-05,2]
[350619198,1738002154576,173.45,9.87e-05,2]
[350619199,1738002154918,173.45,9.873e-05,2]
[350619200,1738002155133,173.45,9.875e-05,2]
[350619201,1738002155337,173.45,9.878e-05,2]
[350619202,1738002155821,173.45,9.881e-05,2]
[350619203,1738002155872,173.45,9.883e-05,2]
[350619204,1738002160548,14940.9,9.834e-05,2]
[350619205,1738002217413,250.0,9.815e-05,2]
[350619206,1738002321370,2419.36284602,9e-05,2]
[350619207,1738002338154,15992.88134444,8e-05,2]
[350619211,1738002357000,24902.05061806,6.94e-05,2]
[350619213,1738002369115,9016.62244799,8e-05,2]
[350619214,1738002375923,23900.0,9.737e-05,2]
[350619216,1738002388526,233.3,9.737e-05,2]
[350619219,1738002456396,500.0,9.624e-05,2]
[350619222,1738002485256,702.02,8.219e-05,2]
[350619223,1738002508340,2399.96,9.67e-05,2]
[350619225,1738002623893,1000.0,9.582e-05,2]
[350619243,1738002632741,-200.0,9.912e-05,2]
[350619244,1738002632751,-247.97,9.916e-05,2]
[350619245,1738002632761,-277.87,9.928e-05,2]
[350619246,1738002632771,-250.0,9.942e-05,2]
[350619247,1738002632781,-130.54724,9.953e-05,2]
[350619253,1738002633076,-1153.42657498,9.953e-05,2]
[350619259,1738002633129,-13.17618502,9.953e-05,2]
[350619261,1738002633139,-300.0,9.999e-05,2]
[350619263,1738002633150,-150.0,9.999e-05,2]
[350619265,1738002633160,-13088.65407136,0.0001,2]
[350619267,1738002633171,-672.12234361,0.0001,2]
[350619269,1738002633182,-52712.00464243,0.0001,2]
[350619801,1738002638425,-120373.72628062,0.0001,2]
[350619808,1738002638486,-36751.42015544,0.0001,2]
[350619822,1738002638601,-1163.4642831,0.0001,2]
[350619829,1738002638663,-103489.3003539,0.0001,2]
[350619831,1738002638674,-15639.98756734,0.0001,2]
[350619833,1738002638685,-45960.0,0.0001,2]
[350619836,1738002638695,-5970.0,0.0001,2]
[350619838,1738002638706,-5571.0,0.0001,2]
[350619840,1738002638718,-19033.10472463,0.0001,2]
[350619951,1738002640436,-9931.98818689,0.0001,2]
[350619952,1738002640446,-219.7738731,0.0001,2]
[350619953,1738002640455,-177.48,0.00010022,2]
[350619954,1738002640463,-559.49,0.00010061,2]
[350619955,1738002640473,-202.63,0.00010081,2]
[350619956,1738002640482,-254.82,0.00010137,2]
[350619957,1738002640491,-596.1,0.00010178,2]
[350619958,1738002640500,-438.93,0.00010241,2]
[350619959,1738002640509,-773.87,0.00010241,2]
[350619960,1738002640518,-773.87,0.00010241,2]
[350619961,1738002640528,-438.93,0.00010241,2]
[350619962,1738002640537,-500.0,0.0001025,2]
[350619963,1738002640547,-5559.0,0.000103,3]
[350619964,1738002640556,-150.0,0.000103,2]
[350619965,1738002640565,-702.02,0.00010459,2]
[350619966,1738002640574,-476.0197845,0.00010499,2]
[350619967,1738002640584,-177392.75510036,0.000105,2]
[350619968,1738002640596,-1096.58070975,0.000105,2]
[350619969,1738002640610,-5432.91611465,0.000105,2]
[350619970,1738002640624,-17176.1111592,0.000105,2]
[350619971,1738002640654,-338.42099327,0.000105,2]
[350619972,1738002640771,-1407.368357,0.000105,2]
[350619973,1738002640783,-4332.830364,0.000105,2]
[350620236,1738002643425,-1580.6777697,0.000105,2]
[350620239,1738002643437,-1144.8405597,0.000105,2]
[350620249,1738002643480,-851.04999999,0.000105,2]
[350620252,1738002643491,-977.26619612,0.000105,2]
[350620264,1738002643586,-263.78044149,0.000105,2]
[350620277,1738002643701,-653.550005,0.000105,2]
[350620543,1738002646415,-2875.69772554,0.000105,2]
[350620544,1738002646426,-3707.9,0.000105,2]
[350620545,1738002646439,-551.58542842,0.000105,2]
[350620546,1738002646584,-3785.16681454,0.000105,2]
[350620547,1738002646644,-2637.5,0.000105,2]
[350620625,1738002647644,-7021.35152972,0.000105,2]
[350620626,1738002647664,-1586.92483209,0.000105,2]
[350620627,1738002647683,-9969.9,0.000105,2]
[350620628,1738002755791,-200.0,0.000102,3]
[350620629,1738002755832,-500.0,0.000103,3]
[350620630,1738002755868,-700.0,0.000104,3]
[350620631,1738002755905,-1000.0,0.000105,3]
[350620632,1738002755940,-5559.0,0.000106,5]
[350620633,1738002755977,-1300.0,0.000106,3]
[350620634,1738002756012,-200.0,0.000107,3]
[350620635,1738002756048,-200.0,0.000108,3]
[350620636,1738002756084,-200.0,0.000109,3]
[350620638,1738002788128,-150.18743489,0.00012323,5]
[350620647,1738003326365,631.81,8.219e-05,2]
[350620675,1738003666704,69063.0,9.787e-05,2]
[350620681,1738003831724,-276.95949586,9.95e-05,2]
[350620682,1738003831784,-2.78050414,9.95e-05,2]
[350620683,1738003831794,-1000.0,9.964e-05,2]
[350620684,1738003831803,-157.55,0.0001,2]
[350620685,1738003831814,-349.82,0.00010137,2]
[350620686,1738003831823,-793.5007,0.000104,2]
[350620687,1738003831833,-1564.125,0.000104,2]
[350620688,1738003831845,-2512.0142,0.000104,2]
[350620689,1738003831854,-1000.0,0.000104,2]
[350620690,1738003831864,-2428.3879,0.000104,2]
[350620691,1738003831873,-631.81,0.00010474,2]
[350620692,1738003831883,-150.0,0.00010499,2]
[350620693,1738003831892,-3941.06513498,0.000105,2]
[350620694,1738003831938,-9909.59999999,0.000105,2]
[350620695,1738003831949,-454.45400004,0.000105,2]
[350620696,1738003831973,-112478.05246165,0.000105,2]
[350620697,1738003831983,-61180.39431586,0.000105,2]
[350620698,1738003831992,-3000.0,0.000105,2]
[350620699,1738003832002,-521.0,0.0001072,2]
[350620700,1738003832016,-1426.7957,0.0001078,2]
[350620701,1738003832025,-726.6100862,0.0001078,2]
[350620702,1738003832035,-806.52248314,0.00010797,2]
[350620703,1738003832043,-119506.46193015,0.000108,2]
[350620704,1738003832057,-3049.99998966,0.000108,2]
[350620705,1738003832068,-47726.20826121,0.000108,2]
[350620706,1738003832078,-151.55267354,0.00010854,2]
[350620707,1738003832089,-5227.18095558,0.00010854,2]
[350620708,1738003832100,-184.56144435,0.00010854,2]
[350620709,1738003832110,-445.23501617,0.00010854,2]
[350620710,1738003832121,-368.62553745,0.00010854,2]
[350620711,1738003832131,-163.51247734,0.00010873,2]
[350620712,1738003832141,-500.0,0.00010873,2]
[350620713,1738003832150,-666.0,0.00010879,2]
[350620714,1738003832160,-666.0,0.00010879,2]
[350620715,1738003832170,-500.0,0.00010879,2]
[350620716,1738003832179,-500.0,0.00010879,2]
[350620717,1738003832189,-185.86198521,0.00010879,2]
[350620727,1738003837633,-297.72144452,0.00010879,2]
[350620728,1738003837643,-812.31266023,0.0001088,2]
[350620729,1738003837681,-404.68733977,0.0001088,2]
[350620730,1738003837691,-16170.43663703,0.0001088,2]
[350620731,1738003837703,-5578.84454555,0.0001088,2]
[350620732,1738003837714,-685.62124694,0.0001088,2]
[350620733,1738003837789,-18949.9985,0.0001088,2]
[350620891,1738003839574,-2718.16665119,0.0001088,2]
[350620894,1738003839586,-4839.2666496,0.0001088,2]
[350620899,1738003839628,-30700.0,0.0001088,2]
[350620905,1738003839683,-4955.0,0.0001088,2]
[350620908,1738003839695,-1320.70537387,0.0001088,2]
[350620919,1738003839789,-1556881.09993552,0.0001088,2]
[350620921,1738003839798,-666.0,0.00010897,2]
[350620923,1738003839808,-201.99,0.00010926,2]
[350620925,1738003839817,-486.12971188,0.00010953,2]
[350620927,1738003839827,-150.0,0.00010953,2]
[350620929,1738003839836,-4238.4596336,0.00010953,2]
[350620931,1738003839847,-500.0,0.00010953,2]
[350620933,1738003839856,-151.0,0.00010954,2]
[350620934,1738003839866,-151.0,0.00010954,2]
[350620936,1738003839876,-154.990602,0.00010954,2]
[350620939,1738003839886,-16241.84930842,0.00010954,2]
[350620941,1738003839897,-346.02250741,0.00010954,2]
[350620943,1738003839908,-573.32806682,0.00010954,2]
[350620945,1738003839919,-11118.50984221,0.00010954,2]
[350620947,1738003839931,-609.5,0.00010954,2]
[350620949,1738003839942,-6029.48000006,0.00010954,2]
[350620951,1738003839953,-658.31999988,0.00010954,2]
[350620953,1738003839963,-1990.66862,0.00010954,2]
[350621273,1738003842805,-278.85,0.00010561,2]
[350621275,1738003842814,-549.15397304,0.00010954,2]
[350621298,1738003843104,-257.71799736,0.00010954,2]
[350621300,1738003843116,-7102.577308,0.00010954,2]
[350621304,1738003843143,-4933.5162073,0.00010954,2]
[350621563,1738003845610,-1205.0,0.0001088,2]
[350621565,1738003845619,-327.52915999,0.00010954,2]
[350621567,1738003845630,-823.41586551,0.00010954,2]
[350621603,1738003845962,-628243.11102235,0.00010954,2]
[350621607,1738003845990,-832.33026482,0.00010954,2]
[350621609,1738003846005,-37509.47931368,0.00010954,2]
[350621612,1738003846017,-53427.29209479,0.00010954,2]
[350621757,1738003867079,500.0,0.00023,120]
[350621758,1738003872540,500.0,0.00023,120]
[350621759,1738003875475,500.0,0.00023,120]
[350621760,1738003878845,500.0,0.00023,120]
[350621761,1738003880572,500.0,0.00023,120]
[350621764,1738004221510,635.75,8.219e-05,2]
[350621765,1738004237570,500.0,0.00010958,7]
[350621766,1738004410930,1000.41851569,0.00023,120]
[350621768,1738004657903,4688.48983722,9.781e-05,7]
[350621775,1738005020921,-150.31,9.99e-05,2]
[350621776,1738005020947,-1198.4382,9.991e-05,2]
[350621789,1738005031973,-1000.0,0.00010016,2]
[350621790,1738005031982,-279.74,0.00010037,2]
[350621791,1738005031991,-300.0,0.0001009,2]
[350621792,1738005032000,-1174.36569044,0.00010091,2]
[350621793,1738005032036,-2036.84972045,0.00010091,2]
[350621794,1738005032045,-6889.08,0.00010091,2]
[350621795,1738005032054,-174.23,0.00010137,2]
[350621796,1738005032063,-247.93,0.000103,2]
[350621797,1738005032073,-635.75,0.00010482,2]
[350621798,1738005032084,-150.0,0.00010853,2]
[350621799,1738005032094,-187.85041972,0.00010854,2]
[350621800,1738005032103,-542.5737024,0.00010854,2]
[350621801,1738005032112,-3484.78730372,0.00010854,2]
[350621802,1738005032122,-22293.6214,0.00010854,2]
[350621803,1738005032131,-1579.72383094,0.000109,2]
[350621804,1738005032141,-1579.72383085,0.00010934,2]
[350621805,1738005032151,-1378.35750991,0.00010953,3]
[350621806,1738005032161,-500.0,0.00010953,2]
[350621807,1738005032170,-1077.0,0.00010954,2]
[350621808,1738005032180,-559.251,0.00010954,2]
[350621809,1738005032189,-3000.0,0.00010954,2]
[350621810,1738005032198,-93658.70178634,0.00010954,2]
[350621811,1738005032210,-426.27575759,0.00010954,2]
[350621812,1738005032223,-982.43337259,0.00010954,2]
[350621813,1738005032235,-8163.41488018,0.00010954,2]
[350621815,1738005032271,-3983.04186657,0.00010954,2]
[350621816,1738005032297,-1880.79730344,0.00010954,2]
[350621818,1738005032309,-625.91901,0.00010954,2]
[350621822,1738005032330,-304.49972813,0.00010954,2]
[350621846,1738005037795,-18900.44442911,0.00010954,2]
[350622009,1738005039945,-869.0,0.00010954,2]
[350622011,1738005039956,-50.11500001,0.00010954,2]
[350622033,1738005040156,-9495.68874781,0.00010954,2]
[350622307,1738005042928,-513.82747869,0.00010954,2]
[350622354,1738005045912,-184.56144435,0.00010854,2]
[350622355,1738005045922,-246.57556458,0.00010954,2]
[350622356,1738005046018,-539.42443542,0.00010954,2]
[350622357,1738005046027,-241.82556208,0.00010954,2]
[350622358,1738005046396,-101640.88748661,0.00010954,2]
[350622362,1738005070146,633.05,8.219e-05,2]
[350622363,1738005269730,166.39,9.914e-05,2]
[350622364,1738005282640,1716.31,9.914e-05,2]
[350622365,1738005313403,1287.91,9.948e-05,2]
[350622366,1738005360729,546.93,9.948e-05,2]
[350622367,1738005394046,339.87647415,9.996e-05,2]
[350622368,1738005424224,1000.0,9.914e-05,2]
[350622369,1738005424536,338.32123843,9.946e-05,2]
[350622370,1738005449186,250.0,9.914e-05,2]
[350622371,1738005482583,3348.28,9.914e-05,2]
[350622372,1738005563234,703.22,9.745e-05,2]
[350622373,1738005650602,486.2,9.752e-05,2]
[350622374,1738005654996,260.24,9.752e-05,2]
[350622375,1738005739329,226.5843161,9.996e-05,2]
[350622376,1738005883332,703.38,9.637e-05,2]
[350622377,1738005920175,7068.0490605,9e-05,2]
[350622378,1738005936921,16731.9509395,8e-05,2]
[350622379,1738005944564,601.39,8.219e-05,2]
[350622381,1738005964689,200.0,9.653e-05,2]
[350622391,1738006063189,1257.52,9.765e-05,2]
[350622393,1738006087650,10785.64977132,9.8e-05,2]
[350622394,1738006087682,7252.42022868,9.8e-05,2]
[350622397,1738006191218,7378.05,9.727e-05,2]
[350622409,1738006232147,-150.0,9.999e-05,2]
[350622410,1738006232157,-7743.45161813,0.0001,2]
[350622411,1738006232167,-14992.54,0.0001,2]
[350622412,1738006232255,-35546.04186056,0.0001,2]
[350622413,1738006232310,-275.83066418,0.0001,2]
[350622414,1738006232321,-1486.97959309,0.0001,2]
[350622417,1738006232384,-50000.0,0.0001,2]
[350622420,1738006232397,-478.39605895,0.0001,2]
[350622422,1738006232408,-577.62102512,0.0001,2]
[350622777,1738006237954,-68878.28139505,0.0001,2]
[350622778,1738006237965,-822.57,0.0001,2]
[350622779,1738006237976,-41563.35716759,0.0001,2]
[350622782,1738006238307,-29535.63621026,0.0001,2]
[350622783,1738006238339,-489.04999834,0.0001,2]
[350622785,1738006238350,-1845.8539949,0.0001,2]
[350622787,1738006238362,-11359.48717156,0.0001,2]
[350622791,1738006239934,-105399.95908012,0.0001,2]
[350622792,1738006239944,-350.69,0.00010023,2]
[350622793,1738006239953,-159.18,0.00010046,2]
[350622794,1738006239962,-159.18,0.00010063,2]
[350622795,1738006239971,-159.18,0.0001008,2]
[350622796,1738006239980,-159.18,0.00010096,2]
[350622797,1738006239989,-151.05621074,0.00010126,2]
[350622798,1738006239998,-157.89,0.00010137,2]
[350622799,1738006240008,-176.58,0.00010226,2]
[350622800,1738006240017,-9999.99,0.00010265,2]
[350622801,1738006240027,-9999.99,0.00010265,2]
[350622802,1738006240036,-3876.1,0.00010265,2]
[350622803,1738006240045,-447.401,0.00010265,2]
[350622804,1738006240055,-770.18,0.00010265,2]
[350622805,1738006240064,-1444.68460131,0.000103,2]
[350622806,1738006240073,-151.05621073,0.00010342,2]
[350622807,1738006240083,-539.6973282,0.00010375,2]
[350622808,1738006240092,-601.39,0.00010459,2]
[350622809,1738006240101,-151.05621073,0.00010558,2]
[350622810,1738006240111,-500.0,0.00010658,2]
[350622811,1738006240120,-301.5,0.0001074,2]
[350622812,1738006240129,-15522.53747675,0.00010768,2]
[350622813,1738006240164,-766.95206944,0.00010768,2]
[350622814,1738006240173,-3548.59745457,0.000108,2]
[350622815,1738006240184,-4203.67456628,0.000108,2]
[350622816,1738006240195,-769.87499999,0.000108,2]
[350622817,1738006240304,-659.81856695,0.000108,2]
[350622818,1738006240331,-3484.18,0.000108,2]
[350622819,1738006240342,-376.84671096,0.000108,2]
[350622820,1738006240353,-807.24999,0.000108,2]
[350622821,1738006240365,-704.428005,0.000108,2]
[350622826,1738006242932,-4008.49835588,0.000108,2]
[350622827,1738006242990,-4564.32281642,0.000108,2]
[350622828,1738006243041,-2516.16206871,0.000108,2]
[350622829,1738006243114,-1617.02532125,0.000108,2]
[350622830,1738006243125,-24385.6433,0.000108,2]
[350622831,1738006243136,-5250.00457257,0.000108,2]
[350622832,1738006243175,-321.22,0.000108,2]
[350622833,1738006243187,-1307.81489267,0.000108,2]
[350622834,1738006243197,-174.62852,0.0001084,2]
[350622835,1738006243206,-187.85041972,0.00010854,2]
[350622836,1738006243215,-361.7158016,0.00010854,2]
[350622837,1738006243225,-2500.0,0.00010854,2]
[350622838,1738006243234,-500.0,0.00010953,2]
[350622839,1738006243243,-702.0,0.00010954,2]
[350622840,1738006243253,-200.0,0.00010954,2]
[350622841,1738006243262,-33186.03729969,0.00010954,2]
[350622843,1738006243283,-578.58314681,0.00010954,2]
[350622844,1738006243294,-468.8786624,0.00010954,2]
[350622845,1738006243306,-459.4436244,0.00010954,2]
[350622846,1738006243317,-578.349716,0.00010954,2]
[350622848,1738006243329,-427.42,0.00010954,2]
[350622849,1738006243340,-513.4034575,0.00010954,2]
[350622851,1738006243352,-567.93,0.00010954,2]
[350622853,1738006243367,-682.68,0.00010954,2]
[350622854,1738006243378,-602.72741978,0.00010954,2]
[350622856,1738006243390,-954.6,0.00010954,2]
[350622858,1738006243402,-764.72434,0.00010954,2]
[350622859,1738006243416,-774.03585973,0.00010954,2]
[350622863,1738006245589,1000.0,9.9e-05,2]
[350622868,1738006246174,-141570.5751822,0.00010954,2]
[350622869,1738006246335,-1097.67821731,0.00010954,2]
[350622876,1738006304001,1460.8756,9.9e-05,2]
[350622877,1738006532821,167.27,8.034e-05,2]